fUST/lending_fUST_20250901
["ID","MTS","AMOUNT","RATE_DAILY","PERIOD"]
[382520761,1756656645717,-1408.09,0.00017526,2]
[382520763,1756656645727,-480.0,0.00017526,2]
[382520765,1756656645736,-1372.53,0.00017526,2]
[382520767,1756656645746,-480.0,0.00017526,2]
[382520769,1756656645756,-480.0,0.00017526,2]
[382520771,1756656645765,-480.0,0.00017526,2]
[382520773,1756656645775,-480.0,0.00017526,2]
[382520775,1756656645785,-672.42,0.00017526,2]
[382520777,1756656645794,-480.0,0.00017526,2]
[382520779,1756656645804,-480.0,0.00017526,2]
[382520781,1756656645814,-480.0,0.00017526,2]
[382520783,1756656645823,-499.94,0.00017526,2]
[382520785,1756656645833,-712.47,0.00017526,2]
[382520787,1756656645843,-1377.62,0.00017526,2]
[382520789,1756656645852,-480.0,0.00017526,2]
[382520791,1756656645862,-381.87211716,0.00017526,2]
[382520792,1756656645872,-645.34,0.00017526,2]
[382520793,1756656645882,-480.0,0.00017526,2]
[382520794,1756656645892,-506.51,0.00017526,2]
[382520795,1756656645902,-480.0,0.00017526,2]
[382520796,1756656645912,-480.0,0.00017526,2]
[382520797,1756656645922,-480.0,0.00017526,2]
[382520798,1756656645932,-3028.397421,0.00017526,2]
[382520799,1756656645941,-500.0,0.00017526,2]
[382520800,1756656645952,-160.0,0.00017529,2]
[382520801,1756656645962,-480.0,0.00017529,2]
[382520802,1756656645972,-567.01,0.00017529,2]
[382520803,1756656645982,-584.88,0.00017529,2]
[382520804,1756656645991,-524.74,0.00017529,2]
[382520806,1756656646001,-1534.4,0.00017529,2]
[382520808,1756656646011,-751.15,0.00017529,2]
[382520810,1756656646021,-480.0,0.00017529,2]
[382520812,1756656646030,-480.0,0.00017529,2]
[382520813,1756656646040,-480.0,0.00017529,2]
[382520815,1756656646050,-452.01923232,0.0001753,2]
[382520817,1756656646059,-480.0,0.0001753,2]
[382520819,1756656646068,-357.35753866,0.0001753,2]
[382520821,1756656646077,-480.0,0.0001753,2]
[382520823,1756656646087,-480.0,0.0001753,2]
[382520825,1756656646097,-2254.23,0.0001753,2]
[382520827,1756656646107,-1415.01,0.0001753,2]
[382520829,1756656646116,-790.66,0.0001753,2]
[382520831,1756656646125,-1575.32,0.0001753,2]
[382520833,1756656646135,-900.07,0.0001753,2]
[382520835,1756656646144,-480.0,0.0001753,2]
[382520837,1756656646154,-1043.97,0.0001753,2]
[382520839,1756656646164,-1492.94,0.0001753,2]
[382520841,1756656646174,-730.08,0.0001753,2]
[382520843,1756656646184,-480.0,0.0001753,2]
[382520845,1756656646193,-948.71,0.0001753,2]
[382520847,1756656646205,-851.74,0.0001753,2]
[382520849,1756656646215,-480.0,0.0001753,2]
[382520851,1756656646224,-1119.85,0.0001753,2]
[382520853,1756656646234,-741.8,0.0001753,2]
[382520855,1756656646243,-480.0,0.0001753,2]
[382520857,1756656646253,-480.0,0.0001753,2]
[382520859,1756656646263,-549.68,0.00017532,2]
[382520861,1756656646273,-549.68,0.00017532,2]
[382520863,1756656646283,-549.68,0.00017532,2]
[382520865,1756656646294,-549.68,0.00017532,2]
[382520867,1756656646303,-549.84109214,0.00017532,2]
[382520869,1756656646313,-489.95,0.00017533,2]
[382520871,1756656646322,-480.0,0.00017533,2]
[382520873,1756656646331,-715.29,0.00017533,2]
[382520876,1756656646341,-480.0,0.00017533,2]
[382520878,1756656646351,-434.75143549,0.00017533,2]
[382520880,1756656646360,-480.0,0.00017533,2]
[382520882,1756656646370,-480.0,0.00017533,2]
[382520884,1756656646379,-480.0,0.00017533,2]
[382520886,1756656646388,-480.0,0.00017533,2]
[382520888,1756656646398,-480.0,0.00017533,2]
[382520890,1756656646407,-485.02,0.00017533,2]
[382520892,1756656646417,-480.0,0.00017533,2]
[382520894,1756656646427,-480.0,0.00017533,2]
[382520896,1756656646437,-480.0,0.00017533,2]
[382520898,1756656646447,-620.91725656,0.00017533,2]
[382520900,1756656646456,-493.4,0.00017533,2]
[382520902,1756656646466,-480.0,0.00017533,2]
[382520904,1756656646476,-572.9,0.00017533,2]
[382520906,1756656646486,-480.0,0.00017533,2]
[382520908,1756656646495,-852.06,0.00017533,2]
[382520910,1756656646505,-480.0,0.00017533,2]
[382520912,1756656646515,-480.0,0.00017533,2]
[382520914,1756656646524,-594.12225828,0.00017533,2]
[382520916,1756656646534,-480.0,0.00017533,2]
[382520918,1756656646548,-480.0,0.00017533,2]
[382520921,1756656646557,-480.0,0.00017533,2]
[382520923,1756656646568,-1162.75,0.00017533,2]
[382520925,1756656646579,-480.0,0.00017533,2]
[382520927,1756656646589,-480.0,0.00017533,2]
[382520928,1756656646599,-480.0,0.00017533,2]
[382520930,1756656646608,-480.0,0.00017533,2]
[382520933,1756656646620,-480.0,0.00017533,2]
[382520935,1756656646630,-480.0,0.00017533,2]
[382520936,1756656646639,-735.81,0.00017533,2]
[382520938,1756656646649,-480.0,0.00017533,2]
[382520941,1756656646658,-480.0,0.00017533,2]
[382520943,1756656646668,-500.0,0.00017533,2]
[382520945,1756656646679,-587.93,0.00017533,2]
[382520946,1756656646689,-480.0,0.00017533,2]
[382520949,1756656646699,-480.0,0.00017533,2]
[382520950,1756656646708,-480.0,0.00017533,2]
[382520953,1756656646719,-480.0,0.00017533,2]
[382520954,1756656646728,-480.0,0.00017533,2]
[382520956,1756656646738,-480.0,0.00017533,2]
[382520959,1756656646748,-480.0,0.00017533,2]
[382520961,1756656646758,-480.0,0.00017533,2]
[382520963,1756656646767,-953.54,0.00017533,2]
[382520965,1756656646777,-480.0,0.00017533,2]
[382520967,1756656646786,-480.0,0.00017533,2]
[382520969,1756656646796,-480.0,0.00017533,2]
[382520971,1756656646805,-1041.88,0.00017533,2]
[382520973,1756656646814,-480.0,0.00017533,2]
[382520975,1756656646824,-1836.3,0.00017533,2]
[382520977,1756656646833,-480.0,0.00017533,2]
[382520979,1756656646842,-495.55,0.00017533,2]
[382520981,1756656646852,-533.7,0.00017533,2]
[382520983,1756656646863,-501.8,0.00017533,2]
[382520985,1756656646874,-480.0,0.00017533,2]
[382520987,1756656646883,-1076.45,0.00017533,2]
[382520989,1756656646893,-535.76,0.00017533,2]
[382520991,1756656646902,-505.86,0.00017533,2]
[382520993,1756656646912,-513.94,0.00017533,2]
[382520995,1756656646921,-480.0,0.00017533,2]
[382520997,1756656646930,-485.77,0.00017533,2]
[382520999,1756656646940,-480.0,0.00017533,2]
[382521001,1756656646951,-666.49,0.00017533,2]
[382521003,1756656646960,-777.94,0.00017533,2]
[382521005,1756656646970,-881.04,0.00017533,2]
[382521007,1756656646979,-480.0,0.00017533,2]
[382521009,1756656646989,-480.0,0.00017533,2]
[382521011,1756656646998,-814.08,0.00017533,2]
[382521013,1756656647008,-502.98,0.00017533,2]
[382521015,1756656647018,-480.0,0.00017533,2]
[382521017,1756656647028,-480.0,0.00017533,2]
[382521019,1756656647037,-482.1,0.00017533,2]
[382521021,1756656647047,-480.0,0.00017533,2]
[382521023,1756656647056,-480.0,0.00017533,2]
[382521025,1756656647066,-838.12,0.00017533,2]
[382521027,1756656647075,-480.0,0.00017533,2]
[382521029,1756656647085,-1080.46,0.00017533,2]
[382521031,1756656647095,-1256.87,0.00017533,2]
[382521033,1756656647104,-480.0,0.00017533,2]
[382521035,1756656647113,-572.89,0.00017533,2]
[382521037,1756656647123,-480.0,0.00017533,2]
[382521039,1756656647132,-674.47,0.00017533,2]
[382521041,1756656647143,-480.0,0.00017533,2]
[382521043,1756656647152,-1257.69,0.00017533,2]
[382521045,1756656647162,-1563.2,0.00017533,2]
[382521047,1756656647171,-606.97,0.00017533,2]
[382521049,1756656647179,-480.0,0.00017533,2]
[382521051,1756656647189,-575.78,0.00017533,2]
[382521053,1756656647198,-480.0,0.00017533,2]
[382521055,1756656647208,-839.64,0.00017533,2]
[382521057,1756656647217,-480.0,0.00017533,2]
[382521059,1756656647226,-545.27,0.00017533,2]
[382521061,1756656647236,-480.0,0.00017533,2]
[382521063,1756656647245,-480.0,0.00017533,2]
[382521065,1756656647255,-480.0,0.00017533,2]
[382521067,1756656647264,-480.0,0.00017533,2]
[382521069,1756656647274,-480.0,0.00017533,2]
[382521071,1756656647284,-480.0,0.00017533,2]
[382521073,1756656647293,-669.78,0.00017533,2]
[382521075,1756656647303,-480.0,0.00017533,2]
[382521077,1756656647312,-652.78,0.00017533,2]
[382521078,1756656647321,-480.0,0.00017533,2]
[382521080,1756656647331,-480.0,0.00017533,2]
[382521082,1756656647340,-11364.23969824,0.00017533,2]
[382521084,1756656647350,-160.0,0.00017536,2]
[382521086,1756656647359,-845.95363151,0.00017536,2]
[382521088,1756656647370,-232.78794292,0.00017536,2]
[382521090,1756656647379,-160.0,0.00017536,2]
[382521092,1756656647390,-160.0,0.00017536,2]
[382521095,1756656647401,-530.02580203,0.00017536,2]
[382521097,1756656647410,-160.0,0.00017536,2]
[382521098,1756656647421,-160.0,0.00017536,2]
[382521101,1756656647430,-160.0,0.00017536,2]
[382521102,1756656647440,-417.15472785,0.00017536,2]
[382521105,1756656647450,-217.4012883,0.00017536,2]
[382521107,1756656647460,-160.0,0.00017536,2]
[382521108,1756656647470,-425.75173308,0.00017536,2]
[382521110,1756656647479,-480.0,0.0001754,2]
[382521112,1756656647488,-480.0,0.0001754,2]
[382521115,1756656647498,-487.56151785,0.0001754,2]
[382521116,1756656647508,-704.56,0.0001754,2]
[382521118,1756656647517,-590.93,0.0001754,2]
[382521120,1756656647526,-480.0,0.0001754,2]
[382521122,1756656647539,-528.92,0.0001754,2]
[382521124,1756656647548,-211.109368,0.0001754,2]
[382521126,1756656647558,-211.109368,0.0001754,2]
[382521128,1756656647568,-211.109368,0.0001754,2]
[382521130,1756656647577,-211.109368,0.0001754,2]
[382521132,1756656647588,-151.0,0.0001754,2]
[382521134,1756656647598,-201.455727,0.0001754,2]
[382521135,1756656647607,-151.0,0.0001754,2]
[382521137,1756656647617,-151.0,0.0001754,2]
[382521139,1756656647627,-151.0,0.0001754,2]
[382521141,1756656647636,-287.782845,0.0001754,2]
[382521143,1756656647645,-151.0,0.0001754,2]
[382521145,1756656647655,-151.0,0.0001754,2]
[382521162,1756656647817,-151.0,0.0001754,2]
[382521164,1756656647828,-151.0,0.0001754,2]
[382521166,1756656647837,-151.0,0.0001754,2]
[382521168,1756656647847,-151.0,0.0001754,2]
[382521170,1756656647856,-151.0,0.0001754,2]
[382521172,1756656647866,-169.664587,0.0001754,2]
[382521174,1756656647875,-151.0,0.0001754,2]
[382521176,1756656647885,-151.0,0.0001754,2]
[382521177,1756656647894,-151.0,0.0001754,2]
[382521179,1756656647903,-151.0,0.0001754,2]
[382521181,1756656647912,-151.0,0.0001754,2]
[382521183,1756656647921,-151.0,0.0001754,2]
[382521185,1756656647931,-151.0,0.0001754,2]
[382521187,1756656647939,-396.759893,0.0001754,2]
[382521189,1756656647948,-396.759893,0.0001754,2]
[382521191,1756656647958,-396.759893,0.0001754,2]
[382521192,1756656647967,-396.759893,0.0001754,2]
[382521194,1756656647976,-151.0,0.0001754,2]
[382521196,1756656647985,-151.0,0.0001754,2]
[382521198,1756656647994,-272.71618602,0.00017542,2]
[382521200,1756656648003,-160.0,0.00017543,2]
[382521202,1756656648013,-160.0,0.00017543,2]
[382521204,1756656648022,-250.385,0.00017548,2]
[382521206,1756656648031,-375.0,0.00017561,2]
[382521207,1756656648041,-9324.39,0.00017572,2]
[382521209,1756656648051,-1972.56,0.00017572,2]
[382521211,1756656648061,-7500.85,0.00017572,2]
[382521213,1756656648070,-3474.2,0.00017572,2]
[382521215,1756656648079,-7469.65,0.00017572,2]
[382521217,1756656648089,-151.0,0.00017572,2]
[382521219,1756656648099,-779.09,0.00017572,2]
[382521221,1756656648109,-151.0,0.00017572,2]
[382521223,1756656648118,-644.49,0.00017572,2]
[382521224,1756656648128,-5379.53,0.00017572,2]
[382521227,1756656648139,-1664.67,0.00017572,2]
[382521228,1756656648148,-1929.29,0.00017572,2]
[382521230,1756656648158,-480.0,0.00017572,2]
[382521232,1756656648167,-500.0,0.00017573,2]
[382521234,1756656648176,-566.56909995,0.00017573,2]
[382521236,1756656648186,-500.0,0.00017573,2]
[382521238,1756656648195,-500.0,0.00017573,2]
[382521240,1756656648205,-500.0,0.00017573,2]
[382521242,1756656648214,-500.0,0.00017573,2]
[382521244,1756656648223,-500.0,0.00017573,2]
[382521246,1756656648233,-608.87160144,0.00017573,2]
[382521247,1756656648243,-500.0,0.00017573,2]
[382521249,1756656648253,-500.0,0.00017573,2]
[382521251,1756656648262,-430.32715268,0.00017573,2]
[382521253,1756656648271,-500.0,0.00017573,2]
[382521255,1756656648281,-500.0,0.00017573,2]
[382521257,1756656648291,-500.0,0.00017573,2]
[382521259,1756656648301,-500.0,0.00017573,2]
[382521261,1756656648311,-160.77188662,0.00017573,2]
[382521263,1756656648320,-500.0,0.00017573,2]
[382521265,1756656648329,-500.0,0.00017573,2]
[382521267,1756656648339,-500.0,0.00017573,2]
[382521269,1756656648348,-373.13586244,0.00017573,2]
[382521271,1756656648358,-500.0,0.00017573,2]
[382521272,1756656648367,-500.0,0.00017573,2]
[382521274,1756656648376,-500.0,0.00017573,2]
[382521276,1756656648386,-181.91700237,0.00017573,2]
[382521278,1756656648395,-158.65713755,0.00017573,2]
[382521280,1756656648404,-500.0,0.00017573,2]
[382521282,1756656648414,-518.48245204,0.00017573,2]
[382521284,1756656648423,-500.0,0.00017573,2]
[382521286,1756656648432,-543.95879641,0.00017573,2]
[382521288,1756656648441,-500.0,0.00017573,2]
[382521289,1756656648450,-500.0,0.00017573,2]
[382521291,1756656648460,-500.39149769,0.00017573,2]
[382521293,1756656648470,-500.0,0.00017573,2]
[382521295,1756656648481,-502.06332901,0.00017573,2]
[382521297,1756656648490,-500.0,0.00017573,2]
[382521299,1756656648500,-504.83033594,0.00017573,2]
[382521301,1756656648509,-151.0,0.00017573,2]
[382521303,1756656648520,-151.0,0.00017573,2]
[382521305,1756656648530,-151.0,0.00017573,2]
[382521307,1756656648542,-151.0,0.00017573,2]
[382521309,1756656648551,-151.0,0.00017573,2]
[382521310,1756656648561,-151.0,0.00017573,2]
[382521312,1756656648571,-151.0,0.00017573,2]
[382521314,1756656648581,-290.227894,0.00017573,2]
[382521316,1756656648592,-151.0,0.00017573,2]
[382521318,1756656648601,-151.0,0.00017582,2]
[382521320,1756656648612,-151.0,0.00017582,2]
[382521322,1756656648622,-183.18149,0.00017582,2]
[382521324,1756656648632,-183.18149,0.00017582,2]
[382521326,1756656648643,-183.18149,0.00017582,2]
[382521328,1756656648652,-183.18149,0.00017582,2]
[382521329,1756656648662,-300.0,0.00017595,2]
[382521331,1756656648672,-300.0,0.00017595,2]
[382521333,1756656648681,-300.0,0.00017595,2]
[382521334,1756656648691,-300.0,0.00017595,2]
[382521336,1756656648702,-300.0,0.00017595,2]
[382521337,1756656648712,-300.0,0.00017595,2]
[382521339,1756656648722,-300.0,0.00017595,2]
[382521341,1756656648733,-300.0,0.00017595,2]
[382521342,1756656648743,-300.0,0.00017595,2]
[382521344,1756656648753,-300.0,0.00017595,2]
[382521346,1756656648763,-300.0,0.00017595,2]
[382521347,1756656648773,-300.0,0.00017595,2]
[382521349,1756656648783,-300.0,0.00017595,2]
[382521351,1756656648793,-300.0,0.00017595,2]
[382521353,1756656648803,-300.0,0.00017595,2]
[382521354,1756656648814,-600.0,0.00017595,2]
[382521356,1756656648823,-154.702727,0.00017595,2]
[382521357,1756656648832,-151.0,0.00017595,2]
[382521359,1756656648842,-151.0,0.00017595,2]
[382521361,1756656648852,-151.0,0.00017595,2]
[382521362,1756656648862,-151.0,0.00017595,2]
[382521364,1756656648871,-279.423575,0.00017595,2]
[382521366,1756656648881,-270.445229,0.00017595,2]
[382521367,1756656648890,-151.0,0.00017595,2]
[382521369,1756656648899,-151.0,0.00017595,2]
[382521370,1756656648908,-172.580756,0.00017595,2]
[382521372,1756656648918,-151.0,0.00017595,2]
[382521374,1756656648927,-172.580756,0.00017595,2]
[382521375,1756656648937,-151.0,0.00017595,2]
[382521377,1756656648946,-172.580756,0.00017595,2]
[382521379,1756656648956,-172.580756,0.00017595,2]
[382521380,1756656648965,-151.0,0.00017595,2]
[382521382,1756656648975,-151.0,0.00017595,2]
[382521383,1756656648984,-387.152177,0.00017595,2]
[382521385,1756656648994,-151.0,0.00017595,2]
[382521387,1756656649003,-151.0,0.00017595,2]
[382521389,1756656649012,-151.0,0.00017595,2]
[382521390,1756656649022,-160.424535,0.00017595,2]
[382521392,1756656649031,-151.0,0.00017595,2]
[382521394,1756656649041,-387.152177,0.00017595,2]
[382521395,1756656649050,-151.83901,0.00017595,2]
[382521397,1756656649060,-387.152177,0.00017595,2]
[382521399,1756656649069,-152.953308,0.00017595,2]
[382521400,1756656649078,-387.152177,0.00017595,2]
[382521402,1756656649089,-151.0,0.000176,2]
[382521404,1756656649098,-151.0,0.000176,2]
[382521406,1756656649107,-151.0,0.000176,2]
[382521407,1756656649117,-151.0,0.000176,2]
[382521409,1756656649126,-151.0,0.000176,2]
[382521411,1756656649136,-151.0,0.000176,2]
[382521413,1756656649145,-1287.0,0.00017603,2]
[382521414,1756656649155,-485.0,0.00017608,2]
[382521416,1756656649164,-375.0,0.00017625,2]
[382521418,1756656649174,-151.0,0.000177,2]
[382521420,1756656649184,-151.0,0.000177,2]
[382521421,1756656649194,-151.0,0.000177,2]
[382521423,1756656649204,-151.0,0.000177,2]
[382521425,1756656649215,-151.0,0.000177,2]
[382521427,1756656649225,-168.0,0.00017793,2]
[382521428,1756656649234,-1600.95,0.00017798,2]
[382521430,1756656649243,-1353.12,0.00017798,2]
[382521432,1756656649253,-480.0,0.00017798,2]
[382521434,1756656649262,-480.0,0.00017798,2]
[382521435,1756656649272,-480.0,0.00017798,2]
[382521437,1756656649281,-784.64,0.00017798,2]
[382521439,1756656649291,-810.9,0.00017798,2]
[382521441,1756656649300,-657.8,0.00017798,2]
[382521442,1756656649310,-480.0,0.00017798,2]
[382521444,1756656649319,-1521.6,0.00017798,2]
[382521446,1756656649329,-573.31,0.00017798,2]
[382521447,1756656649339,-1038.38,0.00017798,2]
[382521448,1756656649347,-480.0,0.00017798,2]
[382521450,1756656649357,-740.85,0.00017798,2]
[382521452,1756656649366,-818.84,0.00017798,2]
[382521453,1756656649376,-480.0,0.00017798,2]
[382521455,1756656649385,-480.0,0.00017798,2]
[382521457,1756656649394,-480.0,0.00017798,2]
[382521459,1756656649404,-875.77,0.00017798,2]
[382521460,1756656649414,-151.0,0.00017798,2]
[382521462,1756656649423,-151.0,0.00017798,2]
[382521464,1756656649433,-1252.22,0.00017798,2]
[382521466,1756656649443,-151.0,0.00017798,2]
[382521467,1756656649452,-225.188496,0.00017798,2]
[382521469,1756656649462,-151.0,0.00017798,2]
[382521471,1756656649471,-151.0,0.00017798,2]
[382521473,1756656649481,-480.0,0.00017798,2]
[382521474,1756656649490,-151.0,0.00017798,2]
[382521476,1756656649500,-649.72,0.00017798,2]
[382521478,1756656649510,-151.0,0.00017798,2]
[382521480,1756656649520,-480.0,0.00017798,2]
[382521481,1756656649528,-151.0,0.00017798,2]
[382521483,1756656649540,-1758.55,0.00017798,2]
[382521485,1756656649549,-1042.93,0.00017798,2]
[382521486,1756656649558,-480.0,0.00017798,2]
[382521488,1756656649568,-492.92,0.00017798,2]
[382521490,1756656649579,-151.0,0.00017798,2]
[382521491,1756656649588,-151.0,0.00017798,2]
[382521493,1756656649597,-570.79,0.00017798,2]
[382521495,1756656649607,-480.0,0.00017798,2]
[382521497,1756656649617,-480.0,0.00017798,2]
[382521498,1756656649626,-480.0,0.00017798,2]
[382521500,1756656649636,-1297.02,0.00017798,2]
[382521502,1756656649645,-533.07,0.00017798,2]
[382521504,1756656649655,-1663.11,0.00017798,2]
[382521505,1756656649664,-480.0,0.00017798,2]
[382521507,1756656649674,-480.0,0.00017798,2]
[382521509,1756656649683,-1465.29,0.00017798,2]
[382521511,1756656649693,-1277.51,0.00017798,2]
[382521512,1756656649703,-480.0,0.00017798,2]
[382521514,1756656649712,-480.0,0.00017798,2]
[382521516,1756656649723,-480.0,0.00017798,2]
[382521518,1756656649732,-522.96,0.00017798,2]
[382521519,1756656649741,-749.9,0.00017798,2]
[382521521,1756656649751,-743.97,0.00017798,2]
[382521523,1756656649760,-368.80140966,0.00017798,2]
[382521525,1756656649769,-673.26,0.00017798,2]
[382521526,1756656649779,-602.51,0.00017798,2]
[382521528,1756656649788,-1230.82,0.00017798,2]
[382521530,1756656649797,-1316.47,0.00017798,2]
[382521531,1756656649807,-1343.09,0.00017798,2]
[382521533,1756656649817,-268.55060938,0.00017798,2]
[382521535,1756656649826,-480.0,0.00017798,2]
[382521537,1756656649836,-1189.63,0.00017798,2]
[382521538,1756656649845,-480.0,0.00017798,2]
[382521540,1756656649854,-1479.93,0.00017798,2]
[382521542,1756656649863,-1308.26,0.00017798,2]
[382521543,1756656649873,-1655.85,0.00017798,2]
[382521545,1756656649882,-576.43,0.00017798,2]
[382521547,1756656649892,-977.84,0.00017799,2]
[382521549,1756656649901,-151.0,0.00017799,2]
[382521551,1756656649910,-529.23,0.00017799,2]
[382521552,1756656649920,-151.0,0.00017799,2]
[382521554,1756656649929,-1264.35,0.00017799,2]
[382521556,1756656649939,-258.097144,0.00017799,2]
[382521557,1756656649948,-151.0,0.00017799,2]
[382521559,1756656649958,-151.0,0.00017799,2]
[382521561,1756656649967,-151.0,0.00017799,2]
[382521563,1756656649976,-480.0,0.00017799,2]
[382521565,1756656649986,-480.0,0.00017799,2]
[382521566,1756656649995,-151.0,0.00017799,2]
[382521568,1756656650005,-151.0,0.00017799,2]
[382521570,1756656650014,-151.0,0.00017799,2]
[382521571,1756656650023,-480.0,0.00017799,2]
[382521573,1756656650033,-522.21,0.00017799,2]
[382521575,1756656650042,-480.0,0.00017799,2]
[382521577,1756656650051,-480.0,0.00017799,2]
[382521578,1756656650060,-480.0,0.00017799,2]
[382521580,1756656650072,-151.0,0.00017799,2]
[382521582,1756656650081,-480.0,0.00017799,2]
[382521584,1756656650091,-480.0,0.00017799,2]
[382521585,1756656650100,-722.69,0.00017799,2]
[382521587,1756656650109,-905.84,0.00017799,2]
[382521589,1756656650119,-480.0,0.00017799,2]
[382521591,1756656650128,-380.01389464,0.00017799,2]
[382521592,1756656650138,-480.0,0.00017799,2]
[382521594,1756656650148,-637.66,0.00017799,2]
[382521596,1756656650158,-636.76,0.00017799,2]
[382521598,1756656650167,-480.0,0.00017799,2]
[382521599,1756656650176,-480.0,0.00017799,2]
[382521601,1756656650186,-1956.08,0.00017799,2]
[382521603,1756656650196,-480.0,0.00017799,2]
[382521605,1756656650205,-480.0,0.00017799,2]
[382521606,1756656650214,-753.72,0.00017799,2]
[382521608,1756656650223,-480.0,0.00017799,2]
[382521610,1756656650232,-480.0,0.00017799,2]
[382521611,1756656650242,-618.88,0.00017799,2]
[382521613,1756656650252,-480.0,0.00017799,2]
[382521615,1756656650262,-481.72,0.00017799,2]
[382521617,1756656650271,-1006.75,0.00017799,2]
[382521618,1756656650280,-480.0,0.00017799,2]
[382521620,1756656650291,-621.62,0.00017799,2]
[382521622,1756656650300,-480.0,0.00017799,2]
[382521624,1756656650310,-981.11,0.00017799,2]
[382521625,1756656650320,-1309.07,0.00017799,2]
[382521627,1756656650331,-1393.52,0.00017799,2]
[382521629,1756656650341,-480.0,0.00017799,2]
[382521631,1756656650350,-1064.57,0.00017799,2]
[382521632,1756656650360,-860.83,0.00017799,2]
[382521634,1756656650369,-642.41,0.00017799,2]
[382521636,1756656650378,-673.77,0.00017799,2]
[382521638,1756656650387,-480.0,0.00017799,2]
[382521639,1756656650397,-480.0,0.00017799,2]
[382521641,1756656650406,-480.0,0.00017799,2]
[382521643,1756656650415,-488.61,0.00017799,2]
[382521644,1756656650424,-829.97,0.00017799,2]
[382521646,1756656650434,-480.0,0.00017799,2]
[382521648,1756656650443,-480.0,0.00017799,2]
[382521650,1756656650453,-571.85,0.00017799,2]
[382521652,1756656650463,-635.28,0.00017799,2]
[382521653,1756656650472,-1723.44,0.00017799,2]
[382521655,1756656650481,-345.17565042,0.00017799,2]
[382521667,1756656650630,-480.0,0.00017799,2]
[382521669,1756656650640,-607.68,0.00017799,2]
[382521670,1756656650651,-1976.23,0.00017799,2]
[382521672,1756656650661,-1348.7,0.00017799,2]
[382521674,1756656650671,-480.0,0.00017799,2]
[382521676,1756656650680,-608.25,0.00017799,2]
[382521677,1756656650690,-3211.61,0.00017799,2]
[382521679,1756656650700,-1465.47,0.00017799,2]
[382521681,1756656650710,-770.68,0.00017799,2]
[382521683,1756656650721,-789.67,0.00017799,2]
[382521684,1756656650730,-715.5,0.00017799,2]
[382521686,1756656650739,-480.0,0.00017799,2]
[382521688,1756656650749,-960.96,0.00017799,2]
[382521690,1756656650758,-480.0,0.00017799,2]
[382521691,1756656650768,-2925.11,0.00017799,2]
[382521693,1756656650777,-480.0,0.00017799,2]
[382521695,1756656650786,-1692.7,0.00017799,2]
[382521696,1756656650795,-886.42,0.00017799,2]
[382521698,1756656650804,-480.0,0.00017799,2]
[382521700,1756656650813,-480.0,0.00017799,2]
[382521702,1756656650822,-480.0,0.00017799,2]